bitfinex-derivatives/quotes_SOLF0:USTF0_20260210
["timestamp","ask_amount","ask_price","bid_price","bid_amount"]
[1770693643860,10.4854,85.887,85.827,7.55306627]
[1770693646271,10.4841,85.898,85.834,7.63561765]
[1770693646773,10.4828,85.908,85.847,7.6425528]
[1770693647368,10.4839,85.899,85.847,7.6425528]
[1770693647677,8.37089858,85.91,85.847,7.6425528]
[1770693648777,10.4827,85.909,85.847,7.6425528]
[1770693649574,10.4827,85.909,85.849,7.63542854]
[1770693649871,8.37089858,85.91,85.849,7.63542854]
[1770693650667,10.4827,85.909,85.849,7.63542854]
[1770693651667,8.37089858,85.89,85.849,7.63542854]
[1770693654073,10.4839,85.899,85.849,7.63542854]
[1770693654767,10.4839,85.899,85.85,7.61755363]
[1770693655168,10.4827,85.909,85.85,7.61755363]
[1770693655375,8.57063078,85.908,85.85,7.61755363]
[1770693655570,10.4827,85.909,85.85,7.61755363]
[1770693655775,10.4833,85.904,85.852,7.61755363]
[1770693656682,8.37373622,85.91,85.852,7.61755363]
[1770693656683,10.4845,85.894,85.852,7.61755363]
[1770693657177,8.37373622,85.86,85.817,21.74621385]
[1770693657385,8.37373622,85.86,85.797,21.74621385]
[1770693657678,8.47958377,85.859,85.788,7.61818691]
[1770693657876,8.37373622,85.84,85.788,7.61818691]
[1770693658278,18.86483622,85.84,85.788,7.61818691]
[1770693658479,8.37373622,85.84,85.77,7.61818691]
[1770693659783,10.4923,85.83,85.77,7.61818691]
[1770693660785,10.4901,85.848,85.771,7.63014127]
[1770693661485,18.86243622,85.86,85.786,7.63014127]
[1770693661882,18.86243622,85.86,85.77,8.37373622]
[1770693661883,8.37373622,85.88,85.791,7.63014127]
[1770693662276,8.37373622,85.88,85.8,7.63014127]
[1770693662981,8.37373622,85.86,85.8,7.63014127]
[1770693663183,10.4893,85.855,85.8,7.63014127]
[1770693663887,10.4907,85.844,85.783,7.61229836]
[1770693667381,8.37373622,85.84,85.783,7.61229836]
[1770693667877,8.37373622,85.84,85.773,10.4992]
[1770693667878,10.4915,85.837,85.773,10.4992]
[1770693668888,10.4915,85.837,85.774,7.5867789]
[1770693669083,10.4915,85.837,85.726,291.0]
[1770693669084,10.4896,85.852,85.776,7.5867789]
[1770693670692,10.4896,85.852,85.782,7.58577955]
[1770693671689,10.4896,85.852,85.786,10.4976]
[1770693671894,10.4896,85.852,85.787,7.58577955]
[1770693672792,10.4908,85.842,85.787,7.58577955]
[1770693673684,10.4895,85.853,85.789,7.56615846]
[1770693674693,10.4895,85.853,85.791,7.56798512]
[1770693675500,8.37373622,85.86,85.803,7.56798512]
[1770693677806,8.37373622,85.86,85.806,7.56613125]
[1770693678096,10.4868,85.876,85.806,7.56613125]
[1770693678302,8.37373622,85.9,85.811,7.56613125]
[1770693678497,8.37373622,85.9,85.823,7.54770297]
[1770693679192,18.85883622,85.89,85.825,7.54770297]
[1770693679390,8.37373622,85.89,85.809,7.54770297]
[1770693679790,10.4863,85.88,85.814,7.54770297]
[1770693680102,8.37373622,85.9,85.814,7.54770297]
[1770693681801,10.4847,85.893,85.822,7.48805993]
[1770693682304,8.37373622,85.9,85.837,7.48805993]
[1770693683004,10.484,85.899,85.837,7.48805993]
[1770693685305,8.37373622,85.9,85.846,7.49158015]
[1770693686209,8.37373622,85.9,85.848,7.49158015]
[1770693686701,8.37373622,85.9,85.849,17.95088084]
[1770693686906,8.37373622,85.9,85.85,7.46098084]
[1770693687103,10.4821,85.914,85.85,7.46098084]
[1770693687407,8.37373622,85.92,85.82,8.37373622]
[1770693687408,8.37373622,85.92,85.855,7.46098084]
[1770693687803,10.4817,85.917,85.858,10.4888]
[1770693688406,10.4844,85.895,85.838,7.46098084]
[1770693689507,8.37373622,85.9,85.844,7.45766489]
[1770693690007,10.4826,85.91,85.844,7.45766489]
[1770693690311,8.37373622,85.92,85.847,7.45766489]
[1770693690806,10.4829,85.908,85.847,7.45766489]
[1770693691112,8.37373622,85.9,85.821,7.45774416]
[1770693691309,10.4853,85.888,85.822,7.45774416]
[1770693691513,8.37373622,85.89,85.822,7.45774416]
[1770693692710,10.486,85.882,85.824,7.4509402]
[1770693694607,10.486,85.882,85.791,34.97]
[1770693694608,10.486,85.882,85.826,7.4463663]
[1770693694809,8.37748666,85.89,85.826,7.4463663]
[1770693695513,8.37748666,85.89,85.828,7.4463663]
[1770693696414,8.37748666,85.93,85.845,7.4463663]
[1770693697708,10.4816,85.918,85.859,7.44674674]
[1770693700313,10.4816,85.918,85.863,7.41936336]
[1770693700611,8.37748666,85.93,85.863,7.41936336]
[1770693702412,8.37748666,85.91,85.863,7.41936336]
[1770693704222,10.4816,85.918,85.865,7.45286158]
[1770693704922,3.12487689,85.9,85.865,7.45286158]
[1770693705522,3.12487689,85.9,85.869,7.45262036]
[1770693705918,3.12487689,85.91,85.869,7.45262036]
[1770693706114,3.12487689,85.9,85.869,7.45262036]
[1770693707423,3.12487689,85.92,85.882,7.45091843]
[1770693708821,3.12487689,85.9,85.882,7.45091843]
[1770693709024,3.12487689,85.9,85.868,7.45134057]
[1770693711425,3.12487689,85.91,85.87,7.46439249]
[1770693712821,3.12487689,85.91,85.872,7.53476115]
[1770693713816,3.12487689,85.91,85.877,10.4865]
[1770693714122,3.12487689,85.91,85.877,18.05131244]
[1770693714426,3.12487689,85.91,85.878,7.56481244]
[1770693717118,3.12487689,85.9,85.878,7.56481244]
[1770693717922,3.12487689,85.91,85.878,7.56481244]
[1770693718327,3.12487689,85.91,85.866,10.4879]
[1770693718524,3.12487689,85.9,85.866,10.4879]
[1770693718729,3.12487689,85.9,85.866,18.21917511]
[1770693719129,3.12487689,85.9,85.867,7.73127511]
[1770693719830,3.12487689,85.9,85.868,10.4876]
[1770693723033,3.12487689,85.9,85.869,7.85890311]
[1770693724936,3.12487689,85.91,85.871,7.91534764]
[1770693725429,3.12487689,85.91,85.873,10.4869]
[1770693725842,3.12487689,85.91,85.871,7.91534764]
[1770693725843,3.12487689,85.9,85.871,7.91534764]
[1770693726024,3.12487689,85.9,85.855,7.94259151]
[1770693727232,3.12487689,85.88,85.844,10.4905]
[1770693727535,3.12487689,85.89,85.845,7.95591735]
[1770693731638,3.12487689,85.89,85.847,8.20673407]
[1770693732440,3.12487689,85.89,85.849,8.20673407]
[1770693732939,0.76559526,85.923,85.864,8.22884582]
[1770693733137,3.12487689,85.91,85.864,8.22884582]
[1770693733635,3.12487689,85.92,85.864,8.22884582]
[1770693733836,3.12487689,85.92,85.868,8.25573168]
[1770693734430,3.12487689,85.92,85.874,8.25573168]
[1770693735641,3.12487689,85.92,85.88,8.26146602]
[1770693736837,3.12487689,85.92,85.882,8.29077976]
[1770693737045,3.12487689,85.93,85.882,8.29077976]
[1770693737941,1.70437044,85.936,85.882,8.29077976]
[1770693738149,3.12487689,85.96,85.911,8.31568898]
[1770693738444,3.12487689,85.95,85.911,8.31568898]
[1770693738846,3.12487689,85.96,85.913,8.32346398]
[1770693739651,3.12487689,85.96,85.915,9.87957139]
[1770693740340,3.12487689,85.95,85.915,9.87957139]
[1770693740541,3.69149454,85.959,85.915,9.87957139]
[1770693742237,3.83344754,85.983,85.915,9.87957139]
[1770693742441,4.13151104,85.969,85.919,9.0910486]
[1770693742639,3.12487689,85.94,85.891,9.0910486]
[1770693742840,4.04019023,85.948,85.902,9.0910486]
[1770693744845,4.58017607,85.939,85.888,9.0910486]
[1770693747546,4.58017607,85.939,85.891,9.0910486]
[1770693750056,4.58017607,85.939,85.832,34.97]
[1770693750057,4.58017607,85.939,85.881,9.0910486]
[1770693751757,4.58017607,85.939,85.883,9.0910486]
[1770693752669,4.58017607,85.939,85.886,9.0910486]
[1770693752964,6.04404816,85.955,85.91,3.12487689]
[1770693753161,6.04404816,85.955,85.911,9.0910486]
[1770693753355,6.04404816,85.968,85.911,9.0910486]
[1770693754555,6.04404816,85.968,85.921,9.0910486]
[1770693758158,13.59454604,85.98,85.921,9.0910486]
[1770693758467,7.42786243,85.979,85.921,9.0910486]
[1770693759168,7.38669883,85.977,85.921,9.0910486]
[1770693759671,7.38669883,85.977,85.92,3.12044604]
[1770693759672,7.38669883,85.977,85.923,9.0910486]
[1770693760865,18.23376011,85.976,85.923,9.0910486]
[1770693761070,7.75916011,85.975,85.923,9.0910486]
[1770693762265,7.95803027,85.949,85.89,12.21149464]
[1770693762572,7.95803027,85.949,85.891,9.0910486]
[1770693763779,3.12044604,85.94,85.891,19.5757486]
[1770693764381,3.12044604,85.94,85.894,10.4844]
[1770693764576,7.95803027,85.949,85.894,10.4844]
[1770693764784,7.95803027,85.949,85.895,9.24360353]
[1770693765081,8.30416228,85.979,85.911,9.24360353]
[1770693765283,3.12044604,85.95,85.896,9.24360353]
[1770693765678,11.6124774,85.95,85.896,9.24360353]
[1770693766583,8.71792126,85.949,85.896,9.24360353]
[1770693767280,8.71792126,85.949,85.897,10.484]
[1770693767584,8.71792126,85.949,85.901,9.20676297]
[1770693768589,9.45457243,85.959,85.901,9.20676297]
[1770693768791,9.45457243,85.959,85.905,9.11761367]
[1770693769482,9.45457243,85.959,85.914,13.49982334]
[1770693770283,9.45457243,85.959,85.858,163.1606]
[1770693770284,20.30535937,85.977,85.921,13.49982334]
[1770693770987,10.07337258,85.976,85.921,13.49982334]
[1770693771688,3.12044604,85.97,85.922,13.49982334]
[1770693772081,3.11997091,85.97,85.922,13.49982334]
[1770693774787,10.76077477,85.949,85.891,13.49982334]
[1770693775387,10.76077477,85.949,85.868,34.97]
[1770693775388,3.11997091,85.96,85.917,13.49982334]
[1770693776790,3.11997091,85.96,85.918,10.4815]
[1770693776993,3.11997091,85.96,85.919,13.49982334]
[1770693778494,3.11997091,85.96,85.922,13.49982334]
[1770693779393,11.67518508,85.949,85.898,10.4839]
[1770693779588,3.11997091,85.95,85.899,13.49982334]
[1770693779792,3.11997091,85.96,85.901,13.49982334]
[1770693780192,3.11997091,85.97,85.921,13.49982334]
[1770693780396,11.64459574,85.978,85.921,13.49982334]
[1770693780788,3.11997091,85.98,85.933,13.49982334]
[1770693781694,3.11997091,85.98,85.938,23.97892334]
[1770693782003,3.11997091,85.98,85.939,13.49982334]
[1770693783189,3.11997091,85.98,85.939,13.38913692]
[1770693784103,3.11997091,85.99,85.94,10.4788]
[1770693785000,3.11997091,85.98,85.93,3.11997091]
[1770693785202,3.11997091,85.98,85.931,13.49982334]
[1770693785805,3.11997091,85.97,85.933,13.49982334]
[1770693785992,3.11997091,85.97,85.911,13.49982334]
[1770693786192,12.38274802,85.982,85.911,13.49982334]
[1770693786193,3.11997091,85.96,85.911,13.49982334]
[1770693786695,3.11997091,85.96,85.92,13.49982334]
[1770693787798,3.11997091,85.96,85.923,10.4808]
[1770693787998,3.11997091,85.97,85.924,13.49982334]
[1770693788402,3.11997091,85.98,85.924,13.49982334]
[1770693789208,3.11997091,85.97,85.936,10.4793]
[1770693789400,3.11997091,85.97,85.924,13.49982334]
[1770693789902,3.11997091,85.95,85.909,13.49982334]
[1770693790406,12.70234134,85.969,85.912,10.4822]
[1770693790407,3.11997091,85.96,85.912,10.4822]
[1770693790807,3.11997091,85.95,85.912,10.4822]
[1770693791507,3.11997091,85.94,85.912,10.4822]
[1770693792406,3.11997091,85.95,85.913,13.49982334]
[1770693792709,3.11997091,85.94,85.891,13.49982334]
[1770693793406,16.25778571,85.95,85.9,13.49982334]
[1770693793595,3.11997091,85.95,85.9,13.49982334]
[1770693794708,13.30191828,85.964,85.91,10.4824]
[1770693794911,3.11997091,85.95,85.911,13.49982334]
[1770693795206,13.30191828,85.964,85.911,13.49982334]
[1770693795207,3.11997091,85.96,85.911,13.49982334]
[1770693795601,3.11997091,85.95,85.914,10.482]
[1770693797412,13.59911504,85.949,85.876,13.49982334]
[1770693797604,3.11997091,85.92,85.876,13.49982334]
[1770693798000,3.11997091,85.92,85.878,10.4864]
[1770693798204,3.11997091,85.92,85.879,13.49982334]
[1770693798506,3.11997091,85.93,85.879,13.49982334]
[1770693799617,3.11997091,85.92,85.879,13.49982334]
[1770693799806,3.11997091,85.92,85.881,10.486]
[1770693800006,3.11997091,85.92,85.882,16.62324172]
[1770693800406,3.11997091,85.93,85.882,16.62324172]
[1770693801006,14.49201825,85.919,85.871,10.4873]
[1770693801211,3.11997091,85.91,85.864,16.15611796]
[1770693801407,14.49201825,85.919,85.864,16.15611796]
[1770693801613,14.49201825,85.919,85.866,16.15611796]
[1770693802611,14.49201825,85.919,85.868,16.15611796]
[1770693802812,3.11997091,85.91,85.861,16.15611796]
[1770693803814,3.11997091,85.91,85.871,10.4873]
[1770693804312,3.11997091,85.92,85.874,10.4868]
[1770693804515,15.42536267,85.929,85.874,10.4868]
[1770693805121,15.42536267,85.929,85.874,26.64291796]
[1770693805324,15.42536267,85.929,85.876,10.4866]
[1770693805508,15.58783372,85.919,85.861,16.15611796]
[1770693805714,18.68547713,85.91,85.861,16.15611796]
[1770693806821,18.68547713,85.91,85.864,10.4881]
[1770693812612,18.68547713,85.91,85.864,26.64421796]
[1770693813216,18.68547713,85.91,85.865,16.15611796]
[1770693814027,15.56550622,85.91,85.871,16.15611796]
[1770693814418,18.68547713,85.91,85.871,16.15611796]
[1770693815129,16.02449566,85.937,85.891,16.15611796]
[1770693815324,16.02449566,85.95,85.9,19.28023417]
[1770693816727,16.02449566,85.95,85.9,16.15611796]
[1770693816928,19.14861187,85.95,85.9,16.15611796]
[1770693817130,19.14861187,85.95,85.9,19.28023417]
[1770693817329,16.02449566,85.95,85.908,10.4827]
[1770693817818,19.14861187,85.96,85.911,16.15611796]
[1770693818024,16.02449566,85.96,85.911,16.15611796]
[1770693818622,16.02449566,85.96,85.913,16.15611796]
[1770693819331,16.02449566,85.975,85.921,16.15611796]
[1770693819831,16.02449566,85.975,85.923,16.15611796]
[1770693820525,16.02449566,85.975,85.925,16.15611796]
[1770693820729,16.02449566,85.989,85.941,16.15611796]
[1770693821837,16.02449566,85.989,85.943,26.63461796]
[1770693822130,16.02449566,85.989,85.944,16.15611796]
[1770693823137,19.14861187,85.97,85.924,16.15611796]
[1770693823335,3.12411621,85.96,85.924,16.15611796]
[1770693824640,19.14861187,85.97,85.924,16.15611796]
[1770693825131,34.97,86.025,85.91,3.12411621]
[1770693825132,16.02449566,85.969,85.91,3.12411621]
[1770693825336,3.12411621,85.96,85.911,16.15611796]
[1770693825543,16.02449566,85.969,85.911,16.15611796]
[1770693825544,3.12411621,85.95,85.911,16.15611796]
[1770693829844,3.12411621,85.95,85.913,10.4821]
[1770693830346,21.23588263,85.97,85.921,18.64044808]
[1770693830535,34.97,86.003,85.877,18.64044808]
[1770693830536,21.23588263,85.93,85.877,18.64044808]
[1770693830735,3.12411621,85.89,85.844,18.64044808]
[1770693830936,3.12411621,85.9,85.844,18.64044808]
[1770693831239,3.12411621,85.9,85.851,18.64044808]
[1770693831441,3.12411621,85.9,85.857,10.4889]
[1770693831644,3.12411621,85.9,85.851,18.64044808]
[1770693831845,3.12411621,85.89,85.851,18.64044808]
[1770693832945,18.11176642,85.909,85.851,18.64044808]
[1770693834047,18.11176642,85.909,85.81,8.372744]
[1770693834048,18.11176642,85.909,85.855,18.64044808]
[1770693834745,10.4802,85.929,85.83,8.372744]
[1770693834746,18.11176642,85.928,85.857,18.64044808]
[1770693835047,8.372744,85.93,85.857,18.64044808]
[1770693835048,18.11176642,85.926,85.857,18.64044808]
[1770693835747,18.11176642,85.926,85.861,18.64044808]
[1770693836648,28.59086642,85.938,85.864,18.64044808]
[1770693836839,18.11176642,85.937,85.864,18.64044808]
[1770693837750,18.11176642,85.937,85.867,18.64044808]
[1770693838144,8.372744,85.95,85.867,18.64044808]
[1770693838145,18.11176642,85.934,85.867,18.64044808]
[1770693838949,18.11176642,85.929,85.867,18.64044808]
[1770693840343,18.11176642,85.929,85.819,163.2336]
[1770693840344,18.11176642,85.909,85.835,18.64044808]
[1770693840549,18.11176642,85.889,85.796,18.64044808]
[1770693841551,18.11176642,85.889,85.824,18.64044808]
[1770693842851,18.11176642,85.889,85.827,18.64044808]
[1770693843448,18.11176642,85.889,85.834,10.4918]
[1770693843651,18.11176642,85.879,85.783,18.64044808]
[1770693843855,18.11176642,85.879,85.791,18.64044808]
[1770693844255,18.11176642,85.875,85.804,18.64044808]
[1770693844957,18.11176642,85.872,85.809,10.4948]
[1770693845256,18.11176642,85.872,85.804,18.64044808]
[1770693846659,18.11176642,85.87,85.806,18.64044808]
[1770693847858,18.11176642,85.87,85.808,10.4949]
[1770693850769,18.11176642,85.862,85.796,18.64044808]
[1770693851364,18.11176642,85.858,85.796,18.64044808]
[1770693851761,18.11176642,85.85,85.779,18.64044808]
[1770693851968,163.0967,85.892,85.779,18.64044808]
[1770693851969,18.11176642,85.839,85.779,18.64044808]
[1770693852560,18.11176642,85.838,85.779,18.64044808]
[1770693853373,18.11176642,85.838,85.781,18.64044808]
[1770693853971,18.11176642,85.853,85.788,18.64044808]
[1770693854576,10.4879,85.866,85.792,18.64044808]
[1770693854872,18.11176642,85.868,85.792,18.64044808]
[1770693855668,18.11176642,85.868,85.811,10.4946]
[1770693855873,18.11176642,85.868,85.812,18.64044808]
[1770693856775,18.11176642,85.868,85.814,10.4942]
[1770693857577,18.11176642,85.886,85.82,18.64044808]
[1770693858079,18.11176642,85.886,85.833,18.64044808]
[1770693859777,18.11176642,85.886,85.834,10.4918]
[1770693860273,18.83849957,85.884,85.809,10.4949]
[1770693860576,18.83849957,85.884,85.809,30.51893602]
[1770693861280,19.63915685,85.874,85.796,20.06154396]
[1770693861477,8.372744,85.91,85.796,20.06154396]
[1770693861478,19.63915685,85.869,85.796,20.06154396]
[1770693861873,19.63915685,85.867,85.803,10.4956]
[1770693862079,19.63915685,85.867,85.804,20.06154396]
[1770693863481,19.63915685,85.867,85.817,20.06154396]
[1770693864484,19.63915685,85.901,85.817,20.06154396]
[1770693864876,19.63915685,85.901,85.831,20.06154396]
[1770693865173,19.63915685,85.917,85.852,20.06154396]
[1770693866776,19.63915685,85.914,85.854,20.06154396]
[1770693867785,19.63915685,85.912,85.854,20.06154396]
[1770693868787,19.63915685,85.909,85.854,20.06154396]
[1770693871791,10.4812,85.921,85.857,20.06154396]
[1770693871982,19.63915685,85.92,85.857,20.06154396]
[1770693872384,19.63915685,85.918,85.857,20.06154396]
[1770693873191,10.4821,85.914,85.857,20.06154396]
[1770693873388,19.63915685,85.913,85.857,20.06154396]
[1770693873586,19.63915685,85.909,85.827,20.06154396]
[1770693874493,19.63915685,85.886,85.829,20.06154396]
[1770693877789,19.63915685,85.886,85.834,10.4917]
[1770693877990,19.63915685,85.886,85.835,20.06154396]
[1770693879100,19.63915685,85.885,85.835,20.06154396]
[1770693883699,10.4863,85.88,85.835,20.06154396]
[1770693885607,10.4868,85.875,85.819,20.06154396]
[1770693885802,30.12595685,85.875,85.819,20.06154396]
[1770693886311,19.63915685,85.874,85.819,20.06154396]
[1770693887309,19.63915685,85.874,85.821,20.06154396]
[1770693888603,19.63915685,85.888,85.823,20.06154396]
[1770693889803,19.63915685,85.888,85.838,20.06049654]
[1770693891705,10.484,85.898,85.84,20.06049654]
[1770693891910,20.60460926,85.897,85.84,20.06049654]
[1770693892512,20.60460926,85.897,85.843,20.06049654]
[1770693896607,20.60460926,85.897,85.846,20.06049654]
[1770693897704,20.60460926,85.897,85.848,10.49]
[1770693900111,20.60460926,85.897,85.84,3.12523168]
[1770693900112,20.60460926,85.908,85.853,20.06049654]
[1770693901002,3.12523168,85.92,85.861,20.06049654]
[1770693901207,20.60460926,85.922,85.871,20.06049654]
[1770693901411,20.60460926,85.919,85.871,20.06049654]
[1770693901602,20.60460926,85.919,85.82,28.82982455]
[1770693901603,20.60460926,85.909,85.857,20.06049654]
[1770693901913,20.60460926,85.909,85.861,20.06049654]
[1770693902514,3.12523168,85.92,85.863,20.06049654]
[1770693902814,3.12523168,85.92,85.871,20.06049654]
[1770693905215,20.60460926,85.922,85.881,20.06049654]
[1770693906120,3.12523168,85.93,85.881,20.06049654]
[1770693906325,20.60460926,85.935,85.883,20.06049654]
[1770693906516,20.60460926,85.935,85.891,20.06049654]
[1770693907722,20.60460926,85.935,85.893,20.06049654]
[1770693908422,3.12523168,85.94,85.893,20.06049654]
[1770693909528,3.12523168,85.96,85.901,20.06049654]
[1770693910826,3.12523168,85.96,85.911,20.06049654]
[1770693911920,3.12523168,85.96,85.913,20.06049654]
[1770693912132,20.60460926,85.974,85.921,20.06049654]
[1770693912324,3.12523168,85.97,85.921,20.06049654]
[1770693912626,3.12523168,85.97,85.92,3.12523168]
[1770693912627,3.12523168,85.97,85.923,20.06049654]
[1770693913125,20.60460926,85.974,85.926,20.06049654]
[1770693914028,20.60460926,85.974,85.929,20.06049654]
[1770693915129,3.12523168,85.97,85.929,20.06049654]
[1770693915628,20.60460926,85.959,85.916,10.4818]
[1770693916428,20.60460926,85.959,85.916,30.54229654]
[1770693916820,20.60460926,85.959,85.917,20.06049654]
[1770693920831,20.60460926,85.959,85.919,10.4814]
[1770693921027,20.41931503,85.985,85.92,21.51555608]
[1770693921229,3.12523168,85.97,85.92,24.64078776]
[1770693921524,20.41931503,85.969,85.92,21.51555608]
[1770693921732,3.12523168,85.96,85.921,10.4812]
[1770693922732,3.12523168,85.96,85.921,31.99675608]
[1770693923833,20.41931503,85.969,85.921,31.99675608]
[1770693924034,3.12523168,85.96,85.922,21.51555608]
[1770693925026,3.12523168,85.97,85.925,21.51555608]
[1770693925229,3.12523168,85.97,85.869,163.1396]
[1770693925230,20.41931503,85.998,85.931,21.51555608]
[1770693925440,3.12523168,85.98,85.931,21.51555608]
[1770693926530,3.12523168,85.99,85.946,21.51555608]
[1770693927330,23.54454671,85.98,85.937,31.99475608]
[1770693927530,23.54454671,85.98,85.938,21.51555608]
[1770693928030,3.12523168,85.97,85.938,21.51555608]
[1770693928229,20.41931503,85.969,85.882,21.51555608]
[1770693928533,3.12523168,85.93,85.882,21.51555608]
[1770693929341,3.12523168,85.94,85.882,21.51555608]
[1770693929836,3.12523168,85.94,85.886,21.51555608]
[1770693930928,20.41931503,85.966,85.89,24.64078776]
[1770693931127,3.12523168,85.96,85.901,21.51555608]
[1770693932841,3.12523168,85.96,85.901,31.99915608]
[1770693933139,3.12523168,85.96,85.902,21.51555608]
[1770693933635,3.12523168,85.95,85.902,21.51555608]
[1770693933841,3.12523168,85.94,85.902,21.51555608]
[1770693934641,3.12523168,85.95,85.902,21.51555608]
[1770693936831,23.5410068,85.95,85.902,21.51555608]
[1770693940239,23.5410068,85.95,85.903,10.4833]
[1770693940443,23.5410068,85.95,85.903,31.99885608]
[1770693940743,23.5410068,85.95,85.904,21.51555608]
[1770693942246,3.12169177,85.96,85.906,21.51555608]
[1770693942443,23.5410068,85.96,85.868,21.62236841]
[1770693942744,23.5410068,85.96,85.823,163.227]
[1770693942745,3.12169177,85.88,85.759,81.05038156]
[1770693942936,3.12169177,85.88,85.742,10.503]
[1770693942937,3.12169177,85.83,85.761,81.05038156]
[1770693943139,163.1592,85.859,85.761,81.05038156]
[1770693943338,3.12169177,85.8,85.761,81.05038156]
[1770693943554,3.12169177,85.81,85.761,81.05038156]
[1770693943759,3.12169177,85.8,85.761,81.05038156]
[1770693943958,3.12169177,85.79,85.731,81.05038156]
[1770693944354,3.12169177,85.78,85.731,81.05038156]
[1770693944558,163.2065,85.835,85.71,3.12169177]
[1770693944559,3.12169177,85.77,85.714,81.05038156]
[1770693945057,8.39733203,85.79,85.714,81.05038156]
[1770693945255,8.39733203,85.77,85.679,80.32001345]
[1770693945650,8.39733203,85.77,85.686,80.32001345]
[1770693946259,8.39733203,85.79,85.686,80.32001345]
[1770693946860,10.66118273,85.864,85.655,163.5474]
[1770693946861,8.39733203,85.8,85.695,79.95268963]
[1770693947161,163.1595,85.859,85.681,163.4978]
[1770693947162,8.39733203,85.83,85.731,79.95268963]
[1770693947356,8.39733203,85.81,85.731,79.95268963]
[1770693948260,10.4911,85.84,85.737,79.95271585]
[1770693948456,8.39733203,85.83,85.737,79.95271585]
[1770693949155,8.39733203,85.81,85.737,79.95271585]
[1770693949461,171.55463203,85.86,85.662,163.5336]
[1770693949462,8.39733203,85.79,85.717,79.72837002]
[1770693953359,10.4953,85.806,85.717,79.72837002]
[1770693953662,10.4935,85.821,85.722,81.16954379]
[1770693953862,8.39733203,85.83,85.741,81.16954379]
[1770693954060,8.39733203,85.86,85.761,81.16954379]
[1770693955760,10.4898,85.851,85.761,91.67024379]
[1770693957256,10.4906,85.844,85.761,91.67024379]
[1770693957865,10.4914,85.838,85.761,91.67024379]
[1770693958058,10.4914,85.838,85.763,81.16954379]
[1770693959855,8.39733203,85.84,85.763,81.16954379]
[1770693959856,10.4923,85.831,85.763,81.16954379]
[1770693960661,10.4923,85.831,85.688,198.4836]
[1770693960662,35.0,85.837,85.77,81.16954379]
[1770693960861,8.39733203,85.87,85.77,89.56687582]
[1770693961063,35.0,85.877,85.791,81.16954379]
[1770693961365,8.39733203,85.89,85.806,81.16954379]
[1770693961767,8.39733203,85.89,85.764,163.3386]
[1770693961768,8.39733203,85.89,85.813,81.16954379]
[1770693962264,8.39733203,85.89,85.81,8.39733203]
[1770693962265,8.39733203,85.89,85.816,81.16954379]
[1770693962766,8.39733203,85.91,85.819,81.16954379]
[1770693963066,8.39733203,85.91,85.815,13.1127]
[1770693963067,8.39733203,85.91,85.828,81.16954379]
[1770693963467,10.4839,85.9,85.828,81.16954379]
[1770693965163,10.4839,85.9,85.83,81.16954379]
[1770693965558,10.4839,85.9,85.835,13.1127]
[1770693965764,10.4852,85.889,85.835,13.1127]
[1770693966569,8.39733203,85.91,85.843,13.1127]
[1770693967167,8.39733203,85.91,85.852,13.1127]
[1770693968266,10.484,85.898,85.852,13.1127]
[1770693969061,18.87993203,85.91,85.852,13.1127]
[1770693971369,18.87993203,85.91,85.86,13.1127]
[1770693971570,18.87993203,85.91,85.835,81.16954379]
[1770693971770,18.87993203,85.91,85.851,13.1127]
[1770693972269,53.87993203,85.91,85.835,81.16954379]
[1770693972467,53.87993203,85.91,85.859,13.1127]
[1770693972872,53.87993203,85.91,85.81,8.39733203]
[1770693972873,316.96691196,85.887,85.82,81.16954379]
[1770693973668,35.0,85.886,85.795,81.16954379]
[1770693973860,35.0,85.886,85.801,81.16954379]
[1770693974373,10.4867,85.876,85.801,91.66534379]
[1770693976573,35.0,85.886,85.812,81.16954379]
[1770693977175,306.48151196,85.887,85.812,81.16954379]
[1770693978279,306.48151196,85.887,85.829,81.16954379]
[1770693979678,306.48151196,85.887,85.832,10.492]
[1770693981177,306.48151196,85.887,85.832,91.56586927]
[1770693983178,306.48151196,85.887,85.842,91.56466927]
[1770693986776,10.40695421,85.95,85.8,8.39733203]
[1770693986777,10.4819,85.915,85.852,81.07386927]
[1770693987178,10.40695421,85.967,85.852,81.07386927]
[1770693987179,8.39733203,85.95,85.852,81.07386927]
[1770693987886,35.0,85.949,85.852,81.07386927]
[1770693988382,10.4804,85.928,85.863,91.56206927]
[1770693988582,8.39733203,85.95,85.863,81.07386927]
[1770693988982,43.39733203,85.95,85.863,81.07386927]
[1770693989684,10.48,85.931,85.872,81.07386927]
[1770693992194,10.4788,85.941,85.874,81.07386927]
[1770693993686,10.4788,85.941,85.876,81.07386927]
[1770693996784,10.4788,85.941,85.879,81.07386927]
[1770693997295,10.4788,85.941,85.882,81.07386927]
[1770693999086,10.4801,85.93,85.882,81.07386927]
[1770693999284,10.4801,85.93,85.831,81.07386927]
[1770693999285,8.36552978,85.93,85.831,81.07386927]